[Event "Late-Titled-Tuesday-Blitz-March-12-2024"]
[Site "Chess.com"]
[Date "2024.03.12"]
[Round "6"]
[White "BlueWizzard"]
[Black "Jarming"]
[Result "0-1"]
[WhiteElo "2869"]
[BlackElo "2669"]
[TimeControl "180+1"]
[EndTime "15:05:51 PDT"]
[Termination "Jarming won on time"]

1. e4 {[%clk 0:03:00.9]} 1... c5 {[%clk 0:02:55.3]} 2. d4 {[%clk 0:02:58.9]}
2... cxd4 {[%clk 0:02:55.2]} 3. Ne2 {[%clk 0:02:58.1]} 3... d6 {[%clk
0:02:54.5]} 4. Qxd4 {[%clk 0:02:56.2]} 4... Nc6 {[%clk 0:02:53.6]} 5. Qe3 {[%clk
0:02:56.9]} 5... g6 {[%clk 0:02:53]} 6. g3 {[%clk 0:02:54.1]} 6... Bg7 {[%clk
0:02:53.3]} 7. Bg2 {[%clk 0:02:54]} 7... Nf6 {[%clk 0:02:34.6]} 8. Nbc3 {[%clk
0:02:52.6]} 8... Rb8 {[%clk 0:02:33.6]} 9. O-O {[%clk 0:02:39.7]} 9... b5 {[%clk
0:02:31.3]} 10. Nd5 {[%clk 0:02:35.5]} 10... O-O {[%clk 0:02:29.7]} 11. a3
{[%clk 0:02:35.4]} 11... a5 {[%clk 0:02:27.6]} 12. h3 {[%clk 0:02:30.1]} 12...
Ne5 {[%clk 0:02:23.3]} 13. Nxf6+ {[%clk 0:02:26.5]} 13... Bxf6 {[%clk
0:02:22.6]} 14. Nc3 {[%clk 0:02:27.2]} 14... Nc4 {[%clk 0:02:21.7]} 15. Qe2
{[%clk 0:02:27.2]} 15... Be6 {[%clk 0:02:18.8]} 16. Rb1 {[%clk 0:02:23.6]} 16...
Qc8 {[%clk 0:02:14.8]} 17. Nd5 {[%clk 0:02:18.9]} 17... Bxd5 {[%clk 0:02:02.5]}
18. exd5 {[%clk 0:02:19.8]} 18... a4 {[%clk 0:02:01.5]} 19. b3 {[%clk
0:02:14.2]} 19... axb3 {[%clk 0:02:01]} 20. cxb3 {[%clk 0:02:15.1]} 20... Ne5
{[%clk 0:01:57.3]} 21. Bh6 {[%clk 0:02:12.2]} 21... Re8 {[%clk 0:01:47.4]} 22.
Rfc1 {[%clk 0:02:11.8]} 22... Qa6 {[%clk 0:01:46.2]} 23. a4 {[%clk 0:02:08.9]}
23... Qa5 {[%clk 0:01:43.8]} 24. axb5 {[%clk 0:02:01.6]} 24... Qxb5 {[%clk
0:01:32]} 25. Qe3 {[%clk 0:01:53.3]} 25... Rec8 {[%clk 0:01:27.8]} 26. g4 {[%clk
0:01:48.7]} 26... Qd3 {[%clk 0:01:17.4]} 27. Qa7 {[%clk 0:01:27.8]} 27... Nf3+
{[%clk 0:01:00.8]} 28. Kh1 {[%clk 0:01:01]} 28... Nh4 {[%clk 0:00:51]} 29. Qb7
{[%clk 0:00:43.4]} 29... Re8 {[%clk 0:00:46]} 30. Qc6 {[%clk 0:00:36.5]} 30...
Nxg2 {[%clk 0:00:43.7]} 31. Kxg2 {[%clk 0:00:37.4]} 31... Qe4+ {[%clk
0:00:42.9]} 32. Kg1 {[%clk 0:00:35.9]} 32... Bd4 {[%clk 0:00:29.1]} 33. Qc2
{[%clk 0:00:30.1]} 33... Qf3 {[%clk 0:00:24.9]} 34. Qd2 {[%clk 0:00:20.9]} 34...
Qxd5 {[%clk 0:00:17.4]} 35. Be3 {[%clk 0:00:19.3]} 35... e5 {[%clk 0:00:18]} 36.
Rc4 {[%clk 0:00:18.3]} 36... Rxb3 {[%clk 0:00:15.5]} 37. Rbc1 {[%clk 0:00:09.3]}
37... Rb2 {[%clk 0:00:11.6]} 38. Qd3 {[%clk 0:00:06.9]} 38... Qf3 {[%clk
0:00:11.6]} 39. Rxd4 {[%clk 0:00:07.2]} 39... exd4 {[%clk 0:00:11.4]} 40. Qxd4
{[%clk 0:00:08.1]} 40... Re2 {[%clk 0:00:09.9]} 41. Rd1 {[%clk 0:00:02.1]} 41...
Qxh3 {[%clk 0:00:08.5]} 42. Qa4 {[%clk 0:00:02.6]} 42... R2xe3 {[%clk
0:00:07.9]} 0-1

[Event "Late-Titled-Tuesday-Blitz-March-12-2024"]
[Site "Chess.com"]
[Date "2024.03.12"]
[Round "6"]
[White "mightysmasher"]
[Black "oskariot"]
[Result "1/2-1/2"]
[WhiteElo "2600"]
[BlackElo "2762"]
[TimeControl "180+1"]
[EndTime "15:05:56 PDT"]
[Termination "Game drawn by repetition"]

1. e4 {[%clk 0:03:00.9]} 1... c5 {[%clk 0:02:59.4]} 2. c3 {[%clk 0:03:00.9]}
2... d6 {[%clk 0:02:51.4]} 3. d4 {[%clk 0:03:00.5]} 3... Nf6 {[%clk 0:02:51.9]}
4. Bd3 {[%clk 0:03:00.1]} 4... Nc6 {[%clk 0:02:52]} 5. Nf3 {[%clk 0:02:59.4]}
5... e5 {[%clk 0:02:52.4]} 6. d5 {[%clk 0:02:59]} 6... Ne7 {[%clk 0:02:52.1]} 7.
O-O {[%clk 0:02:59.4]} 7... Ng6 {[%clk 0:02:51.1]} 8. a3 {[%clk 0:02:56.2]} 8...
Be7 {[%clk 0:02:51]} 9. b4 {[%clk 0:02:56.3]} 9... Nd7 {[%clk 0:02:30.9]} 10.
Re1 {[%clk 0:02:53.7]} 10... O-O {[%clk 0:02:30.9]} 11. c4 {[%clk 0:02:49.6]}
11... b6 {[%clk 0:02:21.4]} 12. Nc3 {[%clk 0:02:47.4]} 12... Nf6 {[%clk
0:02:20.6]} 13. Ne2 {[%clk 0:02:45.2]} 13... Nh5 {[%clk 0:02:19]} 14. h3 {[%clk
0:02:41.9]} 14... h6 {[%clk 0:02:15.4]} 15. Ng3 {[%clk 0:02:38]} 15... Nhf4
{[%clk 0:02:14.4]} 16. Nf5 {[%clk 0:02:33.8]} 16... Bf6 {[%clk 0:01:58.6]} 17.
Rb1 {[%clk 0:02:28.9]} 17... Nxd3 {[%clk 0:01:53.2]} 18. Qxd3 {[%clk 0:02:26]}
18... Ne7 {[%clk 0:01:52.6]} 19. g4 {[%clk 0:02:18.6]} 19... Nxf5 {[%clk
0:01:52.2]} 20. gxf5 {[%clk 0:02:17.7]} 20... Kh7 {[%clk 0:01:50.2]} 21. Kh1
{[%clk 0:02:17.3]} 21... g6 {[%clk 0:01:46.8]} 22. Qe3 {[%clk 0:02:16.6]} 22...
Bg7 {[%clk 0:01:32.4]} 23. Qd3 {[%clk 0:02:15]} 23... gxf5 {[%clk 0:01:27.5]}
24. exf5 {[%clk 0:02:11.1]} 24... Qf6 {[%clk 0:01:27.8]} 25. Nh4 {[%clk
0:01:50.6]} 25... Rg8 {[%clk 0:00:46.9]} 26. Qe4 {[%clk 0:01:46.2]} 26... Bd7
{[%clk 0:00:44.8]} 27. Be3 {[%clk 0:01:38.7]} 27... Bh8 {[%clk 0:00:44.7]} 28.
bxc5 {[%clk 0:01:35.4]} 28... dxc5 {[%clk 0:00:43.6]} 29. Rg1 {[%clk 0:01:22]}
29... Bg7 {[%clk 0:00:29.7]} 30. Qg4 {[%clk 0:01:15.6]} 30... Bh8 {[%clk
0:00:28]} 31. Qh5 {[%clk 0:01:14.5]} 31... Rxg1+ {[%clk 0:00:27.7]} 32. Rxg1
{[%clk 0:01:14.1]} 32... Rg8 {[%clk 0:00:28.6]} 33. Rxg8 {[%clk 0:01:13.1]}
33... Kxg8 {[%clk 0:00:29.5]} 34. Bxh6 {[%clk 0:01:06.3]} 34... e4 {[%clk
0:00:29.9]} 35. Qg4+ {[%clk 0:01:03.7]} 35... Kh7 {[%clk 0:00:29.8]} 36. Bg5
{[%clk 0:01:00.3]} 36... Qd4 {[%clk 0:00:18.5]} 37. Be3 {[%clk 0:00:47.8]} 37...
Qxc4 {[%clk 0:00:12.3]} 38. Qh5+ {[%clk 0:00:47.2]} 38... Kg8 {[%clk 0:00:12.8]}
39. Qg5+ {[%clk 0:00:44.2]} 39... Kh7 {[%clk 0:00:09.7]} 40. Qh5+ {[%clk
0:00:13.2]} 40... Kg8 {[%clk 0:00:09.5]} 41. Qg5+ {[%clk 0:00:13.3]} 41... Kh7
{[%clk 0:00:09.9]} 42. Qh5+ {[%clk 0:00:06.8]} 1/2-1/2

[Event "Late-Titled-Tuesday-Blitz-March-12-2024"]
[Site "Chess.com"]
[Date "2024.03.12"]
[Round "6"]
[White "RantomOpening"]
[Black "jstopa4"]
[Result "0-1"]
[WhiteElo "2580"]
[BlackElo "2752"]
[TimeControl "180+1"]
[EndTime "15:06:00 PDT"]
[Termination "jstopa4 won by checkmate"]

1. e4 {[%clk 0:02:54.7]} 1... e5 {[%clk 0:02:56.1]} 2. Nf3 {[%clk 0:02:54.2]}
2... Nc6 {[%clk 0:02:56.4]} 3. c3 {[%clk 0:02:54.8]} 3... d5 {[%clk 0:02:46.7]}
4. Qa4 {[%clk 0:02:54.4]} 4... f6 {[%clk 0:02:11.6]} 5. d3 {[%clk 0:02:54.2]}
5... Be6 {[%clk 0:02:02.5]} 6. Nbd2 {[%clk 0:02:53.8]} 6... Ne7 {[%clk
0:01:57.2]} 7. b4 {[%clk 0:02:52.1]} 7... a6 {[%clk 0:01:56.7]} 8. Be2 {[%clk
0:02:46.4]} 8... Ng6 {[%clk 0:01:55.1]} 9. g3 {[%clk 0:02:43.2]} 9... Be7 {[%clk
0:01:48.7]} 10. h4 {[%clk 0:02:41.2]} 10... O-O {[%clk 0:01:48.8]} 11. h5 {[%clk
0:02:40.8]} 11... Nh8 {[%clk 0:01:49.2]} 12. Bb2 {[%clk 0:02:38]} 12... b5
{[%clk 0:01:48.6]} 13. Qc2 {[%clk 0:02:37.2]} 13... a5 {[%clk 0:01:48.7]} 14. a3
{[%clk 0:02:36.4]} 14... Nf7 {[%clk 0:01:47.5]} 15. Nh4 {[%clk 0:02:27.5]} 15...
dxe4 {[%clk 0:01:39.5]} 16. dxe4 {[%clk 0:02:23.6]} 16... axb4 {[%clk
0:01:39.7]} 17. axb4 {[%clk 0:02:21.8]} 17... Rxa1+ {[%clk 0:01:39.1]} 18. Bxa1
{[%clk 0:02:22.7]} 18... Qa8 {[%clk 0:01:36.6]} 19. Bb2 {[%clk 0:02:21.3]} 19...
Rb8 {[%clk 0:01:28.9]} 20. O-O {[%clk 0:02:19.8]} 20... Qb7 {[%clk 0:01:25.6]}
21. Ra1 {[%clk 0:02:04.1]} 21... Nd6 {[%clk 0:01:24.9]} 22. Nb3 {[%clk
0:01:57.4]} 22... Nc4 {[%clk 0:01:21.9]} 23. Bc1 {[%clk 0:01:50.5]} 23... Bf8
{[%clk 0:01:19.6]} 24. Nd2 {[%clk 0:01:43.2]} 24... Nd6 {[%clk 0:01:19]} 25. Nb3
{[%clk 0:01:42.2]} 25... Nc4 {[%clk 0:01:17.2]} 26. Nd2 {[%clk 0:01:42.5]} 26...
Nxd2 {[%clk 0:01:05.6]} 27. Bxd2 {[%clk 0:01:43.4]} 27... Ne7 {[%clk 0:01:05.1]}
28. Ra5 {[%clk 0:01:35.7]} 28... c6 {[%clk 0:01:04.8]} 29. Be3 {[%clk
0:01:34.2]} 29... Ra8 {[%clk 0:01:04.5]} 30. Qd2 {[%clk 0:01:29.2]} 30... Nc8
{[%clk 0:00:58.4]} 31. Rxa8 {[%clk 0:01:26.8]} 31... Qxa8 {[%clk 0:00:58.4]} 32.
Qd8 {[%clk 0:01:26.9]} 32... Qa1+ {[%clk 0:00:52.9]} 33. Kh2 {[%clk 0:01:20.1]}
33... Kf7 {[%clk 0:00:42.4]} 34. Qc7+ {[%clk 0:01:17.6]} 34... Ne7 {[%clk
0:00:39.9]} 35. c4 {[%clk 0:00:57.8]} 35... bxc4 {[%clk 0:00:34.3]} 36. Nf5
{[%clk 0:00:57.8]} 36... Qa2 {[%clk 0:00:24.4]} 37. Bg4 {[%clk 0:00:46.2]} 37...
Bxf5 {[%clk 0:00:23.3]} 38. Bxf5 {[%clk 0:00:45.7]} 38... c3 {[%clk 0:00:20.9]}
39. Bxh7 {[%clk 0:00:41.9]} 39... c2 {[%clk 0:00:19.5]} 40. Bg6+ {[%clk
0:00:40.3]} 40... Kg8 {[%clk 0:00:19.8]} 41. Qd7 {[%clk 0:00:37.5]} 41... Qc4
{[%clk 0:00:16.8]} 42. Bc1 {[%clk 0:00:34.7]} 42... Nxg6 {[%clk 0:00:15.6]} 43.
hxg6 {[%clk 0:00:34.5]} 43... Bxb4 {[%clk 0:00:13.9]} 44. Qd1 {[%clk 0:00:30.4]}
44... cxd1=Q {[%clk 0:00:12.8]} 45. Kh3 {[%clk 0:00:02.1]} 45... Qh1+ {[%clk
0:00:11.1]} 46. Kg4 {[%clk 0:00:02.3]} 46... Qe2+ {[%clk 0:00:11.4]} 47. f3
{[%clk 0:00:02.2]} 47... Qexf3# {[%clk 0:00:11]} 0-1

[Event "Late-Titled-Tuesday-Blitz-March-12-2024"]
[Site "Chess.com"]
[Date "2024.03.12"]
[Round "6"]
[White "EsmeraldasAnderson03"]
[Black "Andrei_Skvortsov"]
[Result "0-1"]
[WhiteElo "2571"]
[BlackElo "2744"]
[TimeControl "180+1"]
[EndTime "15:06:00 PDT"]
[Termination "Andrei_Skvortsov won by resignation"]

1. d4 {[%clk 0:02:47]} 1... g6 {[%clk 0:02:57.4]} 2. Nf3 {[%clk 0:02:40.5]} 2...
Bg7 {[%clk 0:02:57.9]} 3. Bf4 {[%clk 0:02:40.2]} 3... d6 {[%clk 0:02:53.9]} 4.
h3 {[%clk 0:02:39.2]} 4... Nd7 {[%clk 0:02:54.2]} 5. Bh2 {[%clk 0:02:39.6]} 5...
e5 {[%clk 0:02:53.8]} 6. e3 {[%clk 0:02:40.3]} 6... Ne7 {[%clk 0:02:52.8]} 7.
Be2 {[%clk 0:02:40.8]} 7... e4 {[%clk 0:02:52.7]} 8. Nfd2 {[%clk 0:02:40.7]}
8... d5 {[%clk 0:02:53.3]} 9. c4 {[%clk 0:02:40.5]} 9... c6 {[%clk 0:02:53.5]}
10. Nc3 {[%clk 0:02:40.7]} 10... O-O {[%clk 0:02:53]} 11. cxd5 {[%clk
0:02:30.9]} 11... cxd5 {[%clk 0:02:53.9]} 12. Nb5 {[%clk 0:02:30.7]} 12... a6
{[%clk 0:02:51.5]} 13. Bc7 {[%clk 0:02:29.3]} 13... axb5 {[%clk 0:02:48.5]} 14.
Bxd8 {[%clk 0:02:29.4]} 14... Rxd8 {[%clk 0:02:49.4]} 15. Bxb5 {[%clk
0:02:29.3]} 15... Nf8 {[%clk 0:02:45.4]} 16. O-O {[%clk 0:02:27.8]} 16... Ne6
{[%clk 0:02:46]} 17. Nb3 {[%clk 0:02:21.8]} 17... b6 {[%clk 0:02:44.1]} 18. Qd2
{[%clk 0:02:20.1]} 18... Nf5 {[%clk 0:02:42.6]} 19. Rfc1 {[%clk 0:02:19.2]}
19... Rb8 {[%clk 0:02:41.5]} 20. a4 {[%clk 0:02:14.3]} 20... Nd6 {[%clk
0:02:39.2]} 21. Be2 {[%clk 0:02:13.4]} 21... Bf8 {[%clk 0:02:35.4]} 22. a5
{[%clk 0:02:13.5]} 22... bxa5 {[%clk 0:02:35.5]} 23. Nxa5 {[%clk 0:02:12.7]}
23... Re8 {[%clk 0:02:31.8]} 24. Nc6 {[%clk 0:02:10.3]} 24... Rb6 {[%clk
0:02:31.7]} 25. Ra5 {[%clk 0:02:04.4]} 25... Bb7 {[%clk 0:02:21.3]} 26. Ne5
{[%clk 0:01:58]} 26... Nf5 {[%clk 0:02:14.9]} 27. Rb5 {[%clk 0:01:54.1]} 27...
Rxb5 {[%clk 0:02:08.7]} 28. Bxb5 {[%clk 0:01:55]} 28... Rb8 {[%clk 0:02:06.1]}
29. Nd7 {[%clk 0:01:51.8]} 29... Ra8 {[%clk 0:02:01.1]} 30. Nxf8 {[%clk
0:01:51.8]} 30... Kxf8 {[%clk 0:02:02]} 31. Qb4+ {[%clk 0:01:49.4]} 31... Kg7
{[%clk 0:02:00.7]} 32. g4 {[%clk 0:01:42.2]} 32... Nh4 {[%clk 0:01:59.6]} 33.
Be2 {[%clk 0:01:42.6]} 33... Ba6 {[%clk 0:01:58.5]} 34. Ra1 {[%clk 0:01:34.4]}
34... Bxe2 {[%clk 0:01:44.9]} 35. Rxa8 {[%clk 0:01:34.6]} 35... Nf3+ {[%clk
0:01:44.9]} 36. Kh1 {[%clk 0:01:32.8]} 36... Bf1 {[%clk 0:01:41.8]} 37. Ra7
{[%clk 0:01:13.2]} 37... Neg5 {[%clk 0:01:36.4]} 38. Qe7 {[%clk 0:01:07.1]}
38... Bxh3 {[%clk 0:01:30.4]} 39. b4 {[%clk 0:01:02.2]} 39... Bf1 {[%clk
0:01:28.2]} 40. Rd7 {[%clk 0:00:58.2]} 40... h5 {[%clk 0:00:58.6]} 41. gxh5
{[%clk 0:00:51.5]} 41... gxh5 {[%clk 0:00:59.5]} 42. Rxd5 {[%clk 0:00:51.3]}
42... Nh3 {[%clk 0:00:59.6]} 43. Qh4 {[%clk 0:00:18.3]} 43... Nxh4 {[%clk
0:00:57.7]} 44. Rxh5 {[%clk 0:00:18.9]} 44... Nf3 {[%clk 0:00:53.6]} 45. Rxh3
{[%clk 0:00:12.7]} 45... Bxh3 {[%clk 0:00:54.5]} 46. b5 {[%clk 0:00:12.8]} 46...
Bc8 {[%clk 0:00:50.1]} 47. Kg2 {[%clk 0:00:12.8]} 47... Kf6 {[%clk 0:00:48.7]}
48. Kg3 {[%clk 0:00:13.2]} 48... Kg5 {[%clk 0:00:49.2]} 49. b6 {[%clk
0:00:13.5]} 49... Nd2 {[%clk 0:00:45.7]} 50. d5 {[%clk 0:00:11.6]} 50... Nc4
{[%clk 0:00:45.6]} 51. f3 {[%clk 0:00:11.7]} 51... exf3 {[%clk 0:00:42]} 52.
Kxf3 {[%clk 0:00:11.7]} 52... Nxb6 {[%clk 0:00:42]} 53. e4 {[%clk 0:00:11.7]}
53... Nc4 {[%clk 0:00:42.1]} 54. Ke2 {[%clk 0:00:10.9]} 54... Kf4 {[%clk
0:00:41.7]} 55. Kd3 {[%clk 0:00:11.4]} 55... Nd6 {[%clk 0:00:42.2]} 56. Kd4
{[%clk 0:00:11.1]} 56... Nxe4 {[%clk 0:00:42.6]} 57. d6 {[%clk 0:00:10.4]} 57...
Nxd6 {[%clk 0:00:42]} 0-1

[Event "Late-Titled-Tuesday-Blitz-March-12-2024"]
[Site "Chess.com"]
[Date "2024.03.12"]
[Round "6"]
[White "BeanScreen"]
[Black "yobdc"]
[Result "1-0"]
[WhiteElo "2743"]
[BlackElo "2571"]
[TimeControl "180+1"]
[EndTime "15:06:08 PDT"]
[Termination "BeanScreen won on time"]

1. e4 {[%clk 0:03:00.9]} 1... c6 {[%clk 0:02:58.3]} 2. d4 {[%clk 0:03:00.7]}
2... d5 {[%clk 0:02:58.6]} 3. exd5 {[%clk 0:03:01.6]} 3... cxd5 {[%clk
0:02:59.2]} 4. Bd3 {[%clk 0:03:01.9]} 4... Nc6 {[%clk 0:02:59.4]} 5. c3 {[%clk
0:03:02.3]} 5... Nf6 {[%clk 0:02:59.2]} 6. Bf4 {[%clk 0:03:02.1]} 6... g6 {[%clk
0:02:58.4]} 7. Nf3 {[%clk 0:03:00.6]} 7... Bf5 {[%clk 0:02:58.5]} 8. Bxf5 {[%clk
0:03:00.1]} 8... gxf5 {[%clk 0:02:59.4]} 9. O-O {[%clk 0:03:00]} 9... e6 {[%clk
0:02:58.4]} 10. Nbd2 {[%clk 0:02:58]} 10... Bd6 {[%clk 0:02:50.1]} 11. Bg5
{[%clk 0:02:58.1]} 11... Be7 {[%clk 0:02:50]} 12. Re1 {[%clk 0:02:42.8]} 12...
Ne4 {[%clk 0:02:44.9]} 13. Bxe7 {[%clk 0:02:42.1]} 13... Qxe7 {[%clk 0:02:45.8]}
14. c4 {[%clk 0:02:42.2]} 14... Nxd2 {[%clk 0:02:33.7]} 15. Qxd2 {[%clk
0:02:21.8]} 15... Rd8 {[%clk 0:02:33]} 16. c5 {[%clk 0:02:13.8]} 16... Qf6
{[%clk 0:02:09]} 17. b4 {[%clk 0:02:10]} 17... Rg8 {[%clk 0:02:06]} 18. b5
{[%clk 0:02:08.6]} 18... Ne7 {[%clk 0:02:04.7]} 19. Ne5 {[%clk 0:02:05.7]} 19...
f4 {[%clk 0:01:47.9]} 20. Qa5 {[%clk 0:00:33.9]} 20... Qg7 {[%clk 0:01:25.2]}
21. g3 {[%clk 0:00:33.8]} 21... fxg3 {[%clk 0:01:23.4]} 22. hxg3 {[%clk
0:00:31.1]} 22... Nf5 {[%clk 0:01:17.6]} 23. Qc3 {[%clk 0:00:23]} 23... Qh6
{[%clk 0:00:45]} 24. c6 {[%clk 0:00:18.8]} 24... Qh3 {[%clk 0:00:31.7]} 25. Re3
{[%clk 0:00:13.7]} 25... Nxe3 {[%clk 0:00:28.3]} 26. Qxe3 {[%clk 0:00:14.6]}
26... bxc6 {[%clk 0:00:27.6]} 27. Nxc6 {[%clk 0:00:13.6]} 27... h5 {[%clk
0:00:14.8]} 28. Nxd8 {[%clk 0:00:09.5]} 28... h4 {[%clk 0:00:14.3]} 29. Nxe6
{[%clk 0:00:09.1]} 29... fxe6 {[%clk 0:00:14]} 30. Qf4 {[%clk 0:00:05.1]} 30...
hxg3 {[%clk 0:00:10]} 31. Qb8+ {[%clk 0:00:05]} 31... Kf7 {[%clk 0:00:10.2]} 32.
Qc7+ {[%clk 0:00:05.8]} 32... Kg6 {[%clk 0:00:06.1]} 33. Qxg3+ {[%clk 0:00:06]}
33... Qxg3+ {[%clk 0:00:05.9]} 34. fxg3 {[%clk 0:00:06.9]} 34... Kf5 {[%clk
0:00:06.4]} 35. Kf2 {[%clk 0:00:05.8]} 35... Ke4 {[%clk 0:00:05.1]} 36. Re1+
{[%clk 0:00:06.3]} 36... Kxd4 {[%clk 0:00:05.3]} 37. Rxe6 {[%clk 0:00:06.5]}
37... Kc4 {[%clk 0:00:03.5]} 38. a4 {[%clk 0:00:06.5]} 38... Kb4 {[%clk
0:00:03.3]} 39. Ra6 {[%clk 0:00:05]} 39... Rg7 {[%clk 0:00:03.6]} 40. Rd6 {[%clk
0:00:04.3]} 40... Kxa4 {[%clk 0:00:03.3]} 41. Rxd5 {[%clk 0:00:04.6]} 41... Kb4
{[%clk 0:00:03.3]} 42. Kf3 {[%clk 0:00:05.1]} 42... Kc4 {[%clk 0:00:03.6]} 43.
Rf5 {[%clk 0:00:05.4]} 43... Rb7 {[%clk 0:00:03.4]} 44. g4 {[%clk 0:00:05.4]}
44... Rxb5 {[%clk 0:00:02.9]} 45. Rxb5 {[%clk 0:00:05.1]} 45... Kxb5 {[%clk
0:00:03.8]} 46. g5 {[%clk 0:00:05.4]} 46... a5 {[%clk 0:00:04.7]} 47. g6 {[%clk
0:00:06.1]} 47... a4 {[%clk 0:00:05.4]} 48. g7 {[%clk 0:00:06.8]} 48... a3
{[%clk 0:00:06.3]} 49. g8=Q {[%clk 0:00:07.2]} 49... a2 {[%clk 0:00:07.1]} 50.
Qxa2 {[%clk 0:00:07.3]} 1-0

[Event "Late-Titled-Tuesday-Blitz-March-12-2024"]
[Site "Chess.com"]
[Date "2024.03.12"]
[Round "6"]
[White "bazar-wokzal"]
[Black "nindjaxx8"]
[Result "1-0"]
[WhiteElo "2573"]
[BlackElo "2682"]
[TimeControl "180+1"]
[EndTime "15:06:12 PDT"]
[Termination "bazar-wokzal won by checkmate"]

1. e4 {[%clk 0:03:00.9]} 1... e6 {[%clk 0:02:58]} 2. d4 {[%clk 0:03:00.5]} 2...
d5 {[%clk 0:02:58.6]} 3. e5 {[%clk 0:03:00.6]} 3... c5 {[%clk 0:02:58.6]} 4. c3
{[%clk 0:03:01.1]} 4... Nc6 {[%clk 0:02:58.8]} 5. Nf3 {[%clk 0:03:01.5]} 5...
Qb6 {[%clk 0:02:59.2]} 6. Be2 {[%clk 0:03:01.4]} 6... cxd4 {[%clk 0:02:42.5]} 7.
cxd4 {[%clk 0:03:00.8]} 7... Nge7 {[%clk 0:02:43]} 8. Na3 {[%clk 0:02:59]} 8...
Nf5 {[%clk 0:02:37.3]} 9. Nc2 {[%clk 0:02:58.2]} 9... Bb4+ {[%clk 0:02:36.8]}
10. Kf1 {[%clk 0:02:54.1]} 10... h5 {[%clk 0:02:35.5]} 11. g3 {[%clk 0:02:52.8]}
11... Bd7 {[%clk 0:02:26.9]} 12. Kg2 {[%clk 0:02:52.5]} 12... h4 {[%clk
0:02:25.8]} 13. g4 {[%clk 0:02:43.9]} 13... h3+ {[%clk 0:02:25.6]} 14. Kf1
{[%clk 0:02:43.9]} 14... Nh4 {[%clk 0:02:24.9]} 15. Nxh4 {[%clk 0:02:40.6]}
15... Rxh4 {[%clk 0:02:23.5]} 16. Rg1 {[%clk 0:02:31]} 16... Be7 {[%clk
0:02:17.8]} 17. f4 {[%clk 0:02:22.3]} 17... Rc8 {[%clk 0:02:10.7]} 18. Rg3
{[%clk 0:02:20.6]} 18... Nb4 {[%clk 0:01:54.5]} 19. Nxb4 {[%clk 0:02:05.3]}
19... Bxb4 {[%clk 0:01:48.1]} 20. Be3 {[%clk 0:02:00.5]} 20... Bb5 {[%clk
0:01:40.4]} 21. Rc1 {[%clk 0:01:54.8]} 21... Rxc1 {[%clk 0:01:30.5]} 22. Qxc1
{[%clk 0:01:50.4]} 22... Bxe2+ {[%clk 0:01:27.5]} 23. Kxe2 {[%clk 0:01:51.3]}
23... Qb5+ {[%clk 0:01:27.1]} 24. Kf3 {[%clk 0:01:43.3]} 24... Kd7 {[%clk
0:01:23.2]} 25. Rg1 {[%clk 0:01:22.5]} 25... Qd3 {[%clk 0:01:14]} 26. Qb1 {[%clk
0:01:20.8]} 26... Qa6 {[%clk 0:01:08.9]} 27. Rc1 {[%clk 0:01:13.4]} 27... Rh8
{[%clk 0:00:53.2]} 28. Qc2 {[%clk 0:01:12.6]} 28... Rd8 {[%clk 0:00:53.2]} 29.
a3 {[%clk 0:00:58]} 29... Be7 {[%clk 0:00:46.2]} 30. Kg3 {[%clk 0:00:56.7]}
30... b6 {[%clk 0:00:20.3]} 31. Kxh3 {[%clk 0:00:54.9]} 31... Ke8 {[%clk
0:00:17.5]} 32. Kg3 {[%clk 0:00:50.9]} 32... Kf8 {[%clk 0:00:14.4]} 33. Qh7
{[%clk 0:00:43.4]} 33... Ke8 {[%clk 0:00:12]} 34. Rc7 {[%clk 0:00:39]} 34... Bf8
{[%clk 0:00:03.7]} 35. Qg8 {[%clk 0:00:35.7]} 35... Rd7 {[%clk 0:00:03.8]} 36.
Rxd7 {[%clk 0:00:34.3]} 36... Kxd7 {[%clk 0:00:04.4]} 37. Qxf8 {[%clk
0:00:34.4]} 37... Qd3 {[%clk 0:00:04.9]} 38. Qxf7+ {[%clk 0:00:34.2]} 38... Kd8
{[%clk 0:00:04]} 39. Qf8+ {[%clk 0:00:30.2]} 39... Kc7 {[%clk 0:00:02.1]} 40.
Qxg7+ {[%clk 0:00:21.5]} 40... Kb8 {[%clk 0:00:02.1]} 41. Qf8+ {[%clk
0:00:18.7]} 41... Kb7 {[%clk 0:00:02.5]} 42. Qe7+ {[%clk 0:00:17.9]} 42... Ka6
{[%clk 0:00:02.5]} 43. Kh4 {[%clk 0:00:16.6]} 43... Qxe3 {[%clk 0:00:02.7]} 44.
Kg5 {[%clk 0:00:16.6]} 44... Qxd4 {[%clk 0:00:02.3]} 45. h4 {[%clk 0:00:16.8]}
45... Qxb2 {[%clk 0:00:02.5]} 46. h5 {[%clk 0:00:16.9]} 46... d4 {[%clk
0:00:03.1]} 47. h6 {[%clk 0:00:17]} 47... d3 {[%clk 0:00:03.5]} 48. h7 {[%clk
0:00:16.4]} 48... d2 {[%clk 0:00:01.4]} 49. h8=Q {[%clk 0:00:15.3]} 49... d1=Q
{[%clk 0:00:01.9]} 50. Qc8+ {[%clk 0:00:14.8]} 50... Ka5 {[%clk 0:00:02.5]} 51.
Qxa7+ {[%clk 0:00:12.9]} 51... Kb5 {[%clk 0:00:02.1]} 52. Qaa6# {[%clk
0:00:12.8]} 1-0